[Event "Bayerischer Schachbund IM 2024"]
[Site "Rosenheim"]
[Date "2024.08.16"]
[Round "7.6"]
[White "Goldbeck, Lars"]
[Black "Schulz, Lukas"]
[Result "1-0"]
[Annotator "ChessBase"]
[ECO "D02"]
[WhiteElo "2321"]
[BlackElo "2298"]
[PlyCount "113"]
[EventDate "2024.08.12"]
[EventType "tourn"]
[EventCountry "GER"]
[SourceTitle "playchess.com"]
[Source "ChessBase"]
[SourceQuality "1"]
[TimeControl "40/5400+30:1800+30"]

1. d4 {[%emt 0:00:02]} Nf6 {[%emt 0:00:06]} 2. Nf3 {[%emt 0:00:05]} g6 {[%emt 0:00:11]} 3. Nbd2 {[%emt 0:00:04]} d5 {[%emt 0:01:48]} 4. c4 {[%emt 0:00:22]} e6 {[%emt 0:04:51]} 5. e3 {[%emt 0:02:30]} Bg7 {[%emt 0:01:15]} 6. b4 {[%emt 0:05:23]} O-O {[%emt 0:01:28]} 7. Bb2 {[%emt 0:01:28]} Nbd7 {[%emt 0:03:26]} 8. Qc2 {[%emt 0:07:14]} c6 {[%emt 0:10:35]} 9. Be2 {[%emt 0:02:30]} e5 {[%emt 0:12:54]} 10. Nxe5 {[%emt 0:10:05]} Nxe5 {[%emt 0:00:08]} 11. dxe5 {[%emt 0:00:03]} Ng4 {[%emt 0:01:23]} 12. cxd5 {[%emt 0:01:29]} Qxd5 {[%emt 0:09:36]} 13. e4 {[%emt 0:02:57]} Qd8 {[%emt 0:07:44]} 14. Bxg4 {[%emt 0:07:05]} Bxg4 {[%emt 0:00:07]} 15. O-O {[%emt 0:07:18]} a5 {[%emt 0:04:34]} 16. bxa5 {[%emt 0:01:35]} Qxa5 {[%emt 0:02:12]} 17. Nb3 {[%emt 0:03:00]} Qc7 {[%emt 0:08:35]} 18. f4 {[%emt 0:02:13]} Rfd8 {[%emt 0:01:50]} 19. Qf2 {[%emt 0:04:03]} Be6 {[%emt 0:27:17]} 20. Bd4 {[%emt 0:01:14]} Re8 {[%emt 0:00:00]} 21. Bb6 {[%emt 0:01:30]} Qc8 {[%emt 0:00:00]} 22. Nc5 {[%emt 0:01:12]} Ra3 {[%emt 0:00:00]} 23. Rfd1 {[%emt 0:13:05]} Bf8 {[%emt 0:00:00]} 24. h3 {[%emt 0:06:13]} Rc3 {[%emt 0:00:00]} 25. Rac1 {[%emt 0:01:24]} Ra3 {[%emt 0:00:00]} 26. Rd2 {[%emt 0:02:10]} Be7 {[%emt 0:00:00]} 27. Rcd1 {[%emt 0:03:22]} Rc3 {[%emt 0:00:00]} 28. Nxe6 {[%emt 0:00:33]} Qxe6 {[%emt 0:00:00]} 29. Bd4 {[%emt 0:01:24]} Ra3 {[%emt 0:00:00]} 30. f5 {[%emt 0:00:31]} Qc4 {[%emt 0:00:00]} 31. e6 {[%emt 0:00:49]} gxf5 {[%emt 0:00:22]} 32. exf5 {[%emt 0:00:56]} Bg5 {[%emt 0:00:29]} 33. Re2 {[%emt 0:04:49]} fxe6 {[%emt 0:00:51]} 34. f6 {[%emt 0:01:44]} Kf7 {[%emt 0:00:47]} 35. Bb2 {[%emt 0:01:22]} Rd3 {[%emt 0:00:43]} 36. Rde1 {[%emt 0:03:36]} Rd7 {[%emt 0:04:24]} 37. Re4 {[%emt 0:01:01]} Qxa2 {[%emt 0:00:28]} 38. Qe2 {[%emt 0:01:22]} h6 {[%emt 0:00:46]} 39. h4 {[%emt 0:01:43]} Bd2 {[%emt 0:00:26]} 40. Qh5+ {[%emt 0:00:30]} Kf8 {[%emt 0:00:16]} 41. Rg4 {[%emt 0:07:33]} e5 {[%emt 0:11:21]} 42. Rg8+ {[%emt 0:07:32]} Qxg8 {[%emt 0:02:30]} 43. Ba3+ {[%emt 0:00:01]} Rde7 {[%emt 0:00:18]} 44. Rxe5 {[%emt 0:03:53]} Qf7 {[%emt 0:03:33]} 45. Bxe7+ {[%emt 0:07:59]} Kg8 {[%emt 0:00:08]} 46. Qf3 {[%emt 0:00:49]} Kh8 {[%emt 0:05:13]} 47. Re2 {[%emt 0:00:42]} Ba5 {[%emt 0:02:57]} 48. Qf4 {[%emt 0:00:36]} Bb6+ {[%emt 0:00:12]} 49. Kh1 {[%emt 0:00:08]} Kh7 {[%emt 0:00:30]} 50. Qe4+ {[%emt 0:00:11]} Kg8 {[%emt 0:03:33]} 51. Rb2 {[%emt 0:00:34]} Bc7 {[%emt 0:03:09]} 52. Rxb7 {[%emt 0:00:44]} Bb8 {[%emt 0:00:11]} 53. Qxc6 {[%emt 0:02:33]} Qh5 {[%emt 0:02:00]} 54. Qc4+ {[%emt 0:00:46]} Kh8 {[%emt 0:00:07]} 55. Qd4 {[%emt 0:02:22]} Kg8 {[%emt 0:02:46]} 56. Rd7 {[%emt 0:00:51]} Qf5 {[%emt 0:00:00]} 57. Qd5+ {[%emt 0:00:34]} 1-0

[Event "Bayerischer Schachbund IM 2024"]
[Site "Rosenheim"]
[Date "2024.08.16"]
[Round "7.7"]
[White "Schneider, Jana"]
[Black "Georgescu, Lena"]
[Result "0-1"]
[Annotator "RC"]
[ECO "C45"]
[WhiteElo "2275"]
[BlackElo "2209"]
[PlyCount "92"]
[EventDate "2024.08.12"]
[EventType "tourn"]
[EventCountry "GER"]
[SourceTitle "playchess.com"]
[Source "ChessBase"]
[SourceQuality "1"]
[TimeControl "40/5400+30:1800+30"]

1. e4 {[%emt 0:00:03]} e5 {[%emt 0:00:03]} 2. Nf3 {[%emt 0:00:07]} Nc6 {[%emt 0:00:10]} 3. d4 {[%emt 0:00:07]} exd4 {[%emt 0:00:04]} 4. Nxd4 {[%emt 0:00:05]} Bc5 {[%emt 0:00:05]} 5. Nb3 {[%emt 0:00:06]} Bb6 {[%emt 0:00:06]} 6. Nc3 {[%emt 0:00:07]} d6 {[%emt 0:00:14]} 7. Qe2 {[%emt 0:00:32]} a5 {[%emt 0:00:31]} 8. a4 {[%emt 0:00:25]} Nb4 {[%emt 0:01:40]} 9. Bf4 {[%emt 0:02:12]} Qf6 {[%emt 0:04:41]} 10. Bg3 {[%emt 0:02:59]} Ne7 {[%emt 0:06:12]} 11. O-O-O {[%emt 0:01:36]} Be6 {[%emt 0:03:26]} 12. h4 {[%emt 0:11:58]} h5 {[%emt 0:01:47]} 13. Qd2 {[%emt 0:08:46]} Bxb3 {[%emt 0:04:47]} 14. cxb3 {[%emt 0:01:08]} O-O-O {[%emt 0:06:13]} 15. Bf4 {[%emt 0:11:29]} Qg6 {[%emt 0:01:53]} 16. Bc4 {[%emt 0:09:48]} d5 {[%emt 0:04:55]} 17. Bb5 {[%emt 0:32:24]} d4 {[%emt 0:22:43]} 18. Ne2 {[%emt 0:00:50]} Qxe4 {[%emt 0:00:23]} 19. Bd3 {[%emt 0:00:21]} Nxd3+ {[%emt 0:00:32]} 20. Qxd3 {[%emt 0:00:08]} Qxd3 {[%emt 0:01:47]} 21. Rxd3 {[%emt 0:00:08]} Nc6 {[%emt 0:01:03]} 22. Kd2 {[%emt 0:01:45]} Rhe8 {[%emt 0:01:16]} 23. Rg3 {[%emt 0:01:22]} g6 {[%emt 0:08:04]} 24. Nc1 {[%emt 0:00:12]} Bc5 {[%emt 0:03:03]} 25. Nd3 {[%emt 0:00:39]} Bb4+ {[%emt 0:00:47]} 26. Nxb4 {[%emt 0:03:34]} Nxb4 {[%emt 0:00:11]} 27. Rc1 {[%emt 0:05:01]} Rd7 {[%emt 0:00:35]} 28. Bg5 {[%emt 0:00:53]} b6 {[%emt 0:01:06]} 29. Re1 {[%emt 0:02:06]} Rxe1 {[%emt 0:00:58]} 30. Kxe1 {[%emt 0:00:02]} Rd6 {[%emt 0:06:16]} 31. Bd2 {[%emt 0:01:22]} Re6+ {[%emt 0:01:12]} 32. Kd1 {[%emt 0:00:05]} Nd5 {[%emt 0:01:18]} 33. Rf3 {[%emt 0:00:26]} f5 {[%emt 0:00:53]} 34. Kc2 {[%emt 0:00:46]} c5 {[%emt 0:01:46]} 35. Kd3 {[%emt 0:00:17]} Kd7 {[%emt 0:02:37]} 36. Rh3 {[%emt 0:00:19]} Kc6 {[%emt 0:01:14]} 37. Rh1 {[%emt 0:00:17]} Ne7 {[%emt 0:02:32]} 38. Rg1 {[%emt 0:02:33]} Kd5 {[%emt 0:00:34]} 39. f3 {[%emt 0:00:36]} Nc6 {[%emt 0:00:52]} 40. Rf1 {[%emt 0:02:09]} Nb4+ {[%emt 0:04:41]} 41. Bxb4 {[%emt 0:30:22]} Re3+ {[%emt 0:30:28]} 42. Kc2 {[%emt 0:00:00]} axb4 {[%emt 0:00:00]} 43. Rf2 {[%emt 0:00:00]} f4 {[%emt 0:00:00]} 44. Rd2 {[%emt 0:00:00]} c4 {[%emt 0:00:00]} 45. bxc4+ {[%emt 0:00:00]} Kxc4 {[%emt 0:00:00]} 46. Rf2 {[%emt 0:00:00]} Re2+ {[%emt 0:00:00]} 0-1

[Event "Bayerischer Schachbund IM 2024"]
[Site "Rosenheim"]
[Date "2024.08.16"]
[Round "7.8"]
[White "Lucas, Arthur"]
[Black "Miller, Eduard"]
[Result "1/2-1/2"]
[Annotator "RC"]
[ECO "B23"]
[WhiteElo "2332"]
[BlackElo "2319"]
[PlyCount "99"]
[EventDate "2024.08.12"]
[EventType "tourn"]
[EventCountry "GER"]
[SourceTitle "playchess.com"]
[Source "ChessBase"]
[SourceQuality "1"]
[TimeControl "40/5400+30:1800+30"]

1. e4 {[%emt 0:01:29]} c5 {[%emt 0:00:36]} 2. Nc3 {[%emt 0:00:53]} Nc6 {[%emt 0:00:07]} 3. f4 {[%emt 0:00:05]} g6 {[%emt 0:00:57]} 4. Nf3 {[%emt 0:00:05]} Bg7 {[%emt 0:00:05]} 5. a3 {[%emt 0:00:17]} d6 {[%emt 0:03:52]} 6. Bc4 {[%emt 0:00:08]} e6 {[%emt 0:11:50]} 7. d3 {[%emt 0:00:18]} Nge7 {[%emt 0:00:07]} 8. Ba2 {[%emt 0:00:25]} d5 {[%emt 0:07:20]} 9. O-O {[%emt 0:04:48]} a6 {[%emt 0:06:28]} 10. Qe1 {[%emt 0:05:21]} Nd4 {[%emt 0:00:52]} 11. Qf2 {[%emt 0:02:48]} b5 {[%emt 0:01:46]} 12. exd5 {[%emt 0:05:52]} exd5 {[%emt 0:01:26]} 13. Be3 {[%emt 0:03:37]} Ne6 {[%emt 0:31:45]} 14. Bxc5 {[%emt 0:06:15]} Nxc5 {[%emt 0:00:08]} 15. Qxc5 {[%emt 1:05:39]} Be6 {[%emt 0:00:55]} 16. Rae1 {[%emt 0:00:00]} O-O {[%emt 0:01:22]} 17. Ng5 {[%emt 0:00:00]} Rc8 {[%emt 0:00:22]} 18. Qf2 {[%emt 0:00:00]} Rc6 {[%emt 0:01:07]} 19. Nd1 {[%emt 0:00:00]} a5 {[%emt 0:07:55]} 20. c3 {[%emt 0:00:00]} b4 {[%emt 0:00:54]} 21. axb4 {[%emt 0:00:00]} axb4 {[%emt 0:00:04]} 22. Qh4 {[%emt 0:00:00]} h6 {[%emt 0:00:29]} 23. Nxe6 {[%emt 0:00:00]} fxe6 {[%emt 0:00:30]} 24. Kh1 {[%emt 0:00:00]} Ra6 {[%emt 0:06:23]} 25. Bb3 {[%emt 0:00:00]} bxc3 {[%emt 0:00:27]} 26. bxc3 {[%emt 0:00:00]} Rf7 {[%emt 0:01:08]} 27. d4 {[%emt 0:00:00]} Qc8 {[%emt 0:04:47]} 28. Qh3 {[%emt 0:00:00]} Nf5 {[%emt 0:01:25]} 29. Bc2 {[%emt 0:00:00]} Ra3 {[%emt 0:01:22]} 30. Qg4 {[%emt 0:01:34]} Kh7 {[%emt 0:00:43]} 31. Qe2 {[%emt 0:00:59]} Ra2 {[%emt 0:00:22]} 32. g4 {[%emt 0:00:32]} Rxc2 {[%emt 0:01:52]} 33. Qxc2 {[%emt 0:00:01]} Nxd4 {[%emt 0:00:05]} 34. Qd3 {[%emt 0:01:20]} Nb3 {[%emt 0:00:11]} 35. f5 {[%emt 0:03:20]} gxf5 {[%emt 0:00:03]} 36. gxf5 {[%emt 0:00:09]} Nc5 {[%emt 0:00:03]} 37. Qh3 {[%emt 0:02:30]} exf5 {[%emt 0:00:11]} 38. Ne3 {[%emt 0:00:30]} Nd3 {[%emt 0:03:07]} 39. Rd1 {[%emt 0:00:28]} Qxc3 {[%emt 0:00:14]} 40. Qf3 {[%emt 0:00:35]} Ne5 {[%emt 0:01:07]} 41. Qe2 {[%emt 0:03:58]} d4 {[%emt 0:08:50]} 42. Nxf5 {[%emt 0:00:56]} Qc6+ {[%emt 0:00:44]} 43. Qg2 {[%emt 0:01:12]} Qxg2+ {[%emt 0:02:21]} 44. Kxg2 {[%emt 0:00:04]} Nc4 {[%emt 0:00:37]} 45. Rc1 {[%emt 0:07:14]} Rxf5 {[%emt 0:02:43]} 46. Rxc4 {[%emt 0:00:04]} Rg5+ {[%emt 0:02:25]} 47. Kh1 {[%emt 0:02:00]} Kg6 {[%emt 0:01:58]} 48. Rc7 {[%emt 0:00:59]} Be5 {[%emt 0:00:37]} 49. Rd7 {[%emt 0:00:43]} Rf5 {[%emt 0:04:18]} 50. Rxf5 {[%emt 0:06:15]} 1/2-1/2

[Event "Bayerischer Schachbund IM 2024"]
[Site "Rosenheim"]
[Date "2024.08.16"]
[Round "7.9"]
[White "Platzgummer, Fabian"]
[Black "Hasenohr, Benedict"]
[Result "1/2-1/2"]
[Annotator "RC"]
[ECO "A11"]
[WhiteElo "2304"]
[BlackElo "2339"]
[PlyCount "96"]
[EventDate "2024.08.12"]
[EventType "tourn"]
[EventCountry "GER"]
[SourceTitle "playchess.com"]
[Source "ChessBase"]
[SourceQuality "1"]
[TimeControl "40/5400+30:1800+30"]

1. Nf3 {[%emt 0:00:55]} d5 {[%emt 0:00:12]} 2. g3 {[%emt 0:00:24]} Nf6 {[%emt 0:00:21]} 3. Bg2 {[%emt 0:00:05]} Bf5 {[%emt 0:00:10]} 4. O-O {[%emt 0:00:12]} e6 {[%emt 0:00:12]} 5. d3 {[%emt 0:01:03]} Be7 {[%emt 0:00:23]} 6. c4 {[%emt 0:09:51]} c6 {[%emt 0:03:37]} 7. cxd5 {[%emt 0:05:28]} exd5 {[%emt 0:07:46]} 8. Nc3 {[%emt 0:02:07]} O-O {[%emt 0:01:06]} 9. Nd4 {[%emt 0:06:05]} Bg4 {[%emt 0:01:36]} 10. h3 {[%emt 0:01:17]} Bd7 {[%emt 0:01:53]} 11. e4 {[%emt 0:08:40]} Qc8 {[%emt 0:08:13]} 12. Kh2 {[%emt 0:14:45]} dxe4 {[%emt 0:15:16]} 13. dxe4 {[%emt 0:00:20]} Rd8 {[%emt 0:00:10]} 14. e5 {[%emt 0:03:44]} Be6 {[%emt 0:02:52]} 15. Qa4 {[%emt 0:17:19]} b5 {[%emt 0:07:28]} 16. Qc2 {[%emt 0:01:14]} Rxd4 {[%emt 0:07:35]} 17. exf6 {[%emt 0:00:27]} Bxf6 {[%emt 0:00:52]} 18. Nxb5 {[%emt 0:01:22]} Rc4 {[%emt 0:00:39]} 19. Nc3 {[%emt 0:03:53]} Nd7 {[%emt 0:03:55]} 20. Rd1 {[%emt 0:01:22]} Rb8 {[%emt 0:03:13]} 21. Bf4 {[%emt 0:02:23]} Rxb2 {[%emt 0:03:15]} 22. Qxb2 {[%emt 0:00:57]} Bxc3 {[%emt 0:00:20]} 23. Qa3 {[%emt 0:03:07]} Bxa1 {[%emt 0:01:00]} 24. Rxa1 {[%emt 0:00:05]} a6 {[%emt 0:00:05]} 25. Bf1 {[%emt 0:05:09]} Rc2 {[%emt 0:01:02]} 26. Be3 {[%emt 0:00:04]} Ne5 {[%emt 0:00:36]} 27. Bd4 {[%emt 0:04:39]} Nc4 {[%emt 0:12:35]} 28. Qa4 {[%emt 0:02:29]} Nd2 {[%emt 0:02:56]} 29. Be2 {[%emt 0:00:40]} Rc4 {[%emt 0:01:59]} 30. Bxc4 {[%emt 0:00:17]} Bxc4 {[%emt 0:00:27]} 31. Qd1 {[%emt 0:00:53]} Bf1 {[%emt 0:02:38]} 32. Qg4 {[%emt 0:00:50]} Qxg4 {[%emt 0:00:55]} 33. hxg4 {[%emt 0:00:03]} Nf3+ {[%emt 0:00:06]} 34. Kh1 {[%emt 0:00:03]} Bh3 {[%emt 0:00:05]} 35. Be3 {[%emt 0:01:05]} Bxg4 {[%emt 0:00:27]} 36. Rb1 {[%emt 0:00:10]} g5 {[%emt 0:05:14]} 37. Rb6 {[%emt 0:01:02]} h5 {[%emt 0:02:05]} 38. Rxa6 {[%emt 0:03:20]} h4 {[%emt 0:00:44]} 39. gxh4 {[%emt 0:00:59]} gxh4 {[%emt 0:00:04]} 40. Ra4 {[%emt 0:00:50]} Be6 {[%emt 0:04:04]} 41. Rf4 {[%emt 0:03:25]} Bxa2 {[%emt 0:02:38]} 42. Kg2 {[%emt 0:10:20]} Bd5 {[%emt 0:00:13]} 43. Kh3 {[%emt 0:00:12]} f5 {[%emt 0:08:52]} 44. Rxh4 {[%emt 0:09:42]} Nxh4 {[%emt 0:02:44]} 45. Kxh4 {[%emt 0:00:02]} Kf7 {[%emt 0:00:04]} 46. Kg5 {[%emt 0:00:04]} Ke6 {[%emt 0:00:03]} 47. Kf4 {[%emt 0:00:05]} Be4 {[%emt 0:00:05]} 48. Ba7 {[%emt 0:00:04]} Kd5 {[%emt 0:00:12]} 1/2-1/2

[Event "Bayerischer Schachbund IM 2024"]
[Site "Rosenheim"]
[Date "2024.08.16"]
[Round "7.10"]
[White "Zysk, Robert"]
[Black "Reimann, Sebastian"]
[Result "1/2-1/2"]
[Annotator "RC"]
[ECO "D41"]
[WhiteElo "2376"]
[BlackElo "2327"]
[PlyCount "41"]
[EventDate "2024.08.12"]
[EventType "tourn"]
[EventCountry "GER"]
[SourceTitle "playchess.com"]
[Source "ChessBase"]
[SourceQuality "1"]
[TimeControl "40/5400+30:1800+30"]

1. Nf3 {[%emt 0:00:02]} Nf6 {[%emt 0:00:19]} 2. c4 {[%emt 0:01:11]} e6 {[%emt 0:00:06]} 3. Nc3 {[%emt 0:03:45]} d5 {[%emt 0:00:13]} 4. d4 {[%emt 0:00:05]} c5 {[%emt 0:00:10]} 5. cxd5 {[%emt 0:02:23]} cxd4 {[%emt 0:00:07]} 6. Qxd4 {[%emt 0:03:06]} exd5 {[%emt 0:00:07]} 7. e4 {[%emt 0:01:00]} dxe4 {[%emt 0:00:07]} 8. Qxd8+ {[%emt 0:00:28]} Kxd8 {[%emt 0:00:04]} 9. Ng5 {[%emt 0:00:30]} Be6 {[%emt 0:00:04]} 10. Nxe6+ {[%emt 0:02:28]} fxe6 {[%emt 0:00:07]} 11. Bg5 {[%emt 0:09:41]} Nc6 {[%emt 0:00:07]} 12. Bc4 {[%emt 0:13:40]} Ke7 {[%emt 0:10:12]} 13. Nxe4 {[%emt 0:03:27]} Kf7 {[%emt 0:12:17]} 14. Nxf6 {[%emt 0:11:40]} Bb4+ {[%emt 0:01:01]} 15. Bd2 {[%emt 0:08:25]} Bxd2+ {[%emt 0:01:13]} 16. Kxd2 {[%emt 0:00:07]} Rhd8+ {[%emt 0:00:28]} 17. Ke3 {[%emt 0:01:05]} gxf6 {[%emt 0:00:08]} 18. Rac1 {[%emt 0:02:21]} Rac8 {[%emt 0:01:14]} 19. f4 {[%emt 0:08:28]} Ke7 {[%emt 0:05:22]} 20. Bb5 {[%emt 0:01:56]} Nb4 {[%emt 0:02:20]} 21. Bc4 {[%emt 0:06:00]} 1/2-1/2

[Event "Bayerischer Schachbund IM 2024"]
[Site "Rosenheim"]
[Date "2024.08.17"]
[Round "8.6"]
[White "Schulz, Lukas"]
[Black "Reimann, Sebastian"]
[Result "0-1"]
[Annotator "RC"]
[ECO "C34"]
[WhiteElo "2298"]
[BlackElo "2327"]
[PlyCount "86"]
[EventDate "2024.08.12"]
[EventType "tourn"]
[EventCountry "GER"]
[SourceTitle "playchess.com"]
[Source "ChessBase"]
[SourceQuality "1"]
[TimeControl "40/5400+30:1800+30"]

1. e4 {[%emt 0:00:02]} e5 {[%emt 0:02:53]} 2. f4 {[%emt 0:00:08]} exf4 {[%emt 0:00:05]} 3. Nf3 {[%emt 0:00:08]} d6 {[%emt 0:00:06]} 4. d4 {[%emt 0:00:44]} g5 {[%emt 0:00:13]} 5. Nc3 {[%emt 0:00:30]} Bg7 {[%emt 0:00:15]} 6. g3 {[%emt 0:00:52]} Nc6 {[%emt 0:00:11]} 7. h3 {[%emt 0:01:15]} g4 {[%emt 0:00:39]} 8. hxg4 {[%emt 0:00:12]} fxg3 {[%emt 0:00:07]} 9. Bg2 {[%emt 0:09:55]} Bxg4 {[%emt 0:01:52]} 10. Be3 {[%emt 0:02:07]} h5 {[%emt 0:00:32]} 11. Qd3 {[%emt 0:13:23]} h4 {[%emt 0:27:38]} 12. Bg5 {[%emt 0:07:50]} Qd7 {[%emt 0:00:08]} 13. Rxh4 {[%emt 0:08:04]} Rxh4 {[%emt 0:16:45]} 14. Bxh4 {[%emt 0:00:08]} Bxf3 {[%emt 0:11:50]} 15. Qxf3 {[%emt 0:03:16]} Nxd4 {[%emt 0:00:05]} 16. Qxg3 {[%emt 0:01:03]} Kf8 {[%emt 0:00:11]} 17. O-O-O {[%emt 0:05:36]} Qe6 {[%emt 0:06:52]} 18. Kb1 {[%emt 0:07:13]} Qe5 {[%emt 0:01:52]} 19. Qf2 {[%emt 0:09:41]} Nb5 {[%emt 0:01:37]} 20. Na4 {[%emt 0:00:17]} Na3+ {[%emt 0:02:25]} 21. Ka1 {[%emt 0:03:08]} Nc4 {[%emt 0:03:40]} 22. Rd5 {[%emt 0:04:38]} Qe8 {[%emt 0:00:14]} 23. Nc3 {[%emt 0:14:48]} Qc6 {[%emt 0:00:17]} 24. e5 {[%emt 0:04:28]} Qb6 {[%emt 0:00:05]} 25. Qxb6 {[%emt 0:00:09]} Nxb6 {[%emt 0:00:04]} 26. exd6 {[%emt 0:01:04]} Nxd5 {[%emt 0:00:49]} 27. Bxd5 {[%emt 0:00:36]} c6 {[%emt 0:03:39]} 28. Bf3 {[%emt 0:00:34]} Be5 {[%emt 0:08:29]} 29. Ne4 {[%emt 0:00:07]} f5 {[%emt 0:00:19]} 30. Nc5 {[%emt 0:00:09]} Bxd6 {[%emt 0:00:40]} 31. Nxb7 {[%emt 0:00:09]} Be7 {[%emt 0:01:24]} 32. Bf2 {[%emt 0:00:09]} Nf6 {[%emt 0:01:54]} 33. Nc5 {[%emt 0:03:22]} Bxc5 {[%emt 0:00:19]} 34. Bxc5+ {[%emt 0:00:04]} Kf7 {[%emt 0:00:05]} 35. a4 {[%emt 0:01:14]} Ne4 {[%emt 0:00:11]} 36. Bd4 {[%emt 0:00:09]} Ke6 {[%emt 0:01:34]} 37. Ka2 {[%emt 0:00:54]} a5 {[%emt 0:00:45]} 38. c4 {[%emt 0:00:34]} Kd6 {[%emt 0:01:11]} 39. Be3 {[%emt 0:00:47]} Ke5 {[%emt 0:00:17]} 40. Bb6 {[%emt 0:00:17]} Kf4 {[%emt 0:00:31]} 41. Bh5 {[%emt 0:02:00]} Kg3 {[%emt 0:01:43]} 42. Bg6 {[%emt 0:00:55]} Kg4 {[%emt 0:00:06]} 43. Bf7 {[%emt 0:07:00]} Ng5 {[%emt 0:01:01]} 0-1

[Event "Bayerischer Schachbund IM 2024"]
[Site "Rosenheim"]
[Date "2024.08.17"]
[Round "8.7"]
[White "Hasenohr, Benedict"]
[Black "Zysk, Robert"]
[Result "0-1"]
[Annotator "RC"]
[ECO "E51"]
[WhiteElo "2339"]
[BlackElo "2376"]
[PlyCount "88"]
[EventDate "2024.08.12"]
[EventType "tourn"]
[EventCountry "GER"]
[SourceTitle "playchess.com"]
[Source "ChessBase"]
[SourceQuality "1"]
[TimeControl "40/5400+30:1800+30"]

1. d4 {[%emt 0:00:05]} Nf6 {[%emt 0:00:44]} 2. c4 {[%emt 0:00:10]} e6 {[%emt 0:00:11]} 3. Nc3 {[%emt 0:00:08]} Bb4 {[%emt 0:00:05]} 4. Qc2 {[%emt 0:00:07]} O-O {[%emt 0:00:27]} 5. Bd2 {[%emt 0:01:14]} d5 {[%emt 0:01:56]} 6. e3 {[%emt 0:00:53]} b6 {[%emt 0:13:07]} 7. cxd5 {[%emt 0:05:30]} exd5 {[%emt 0:00:42]} 8. Bd3 {[%emt 0:04:27]} c5 {[%emt 0:06:28]} 9. dxc5 {[%emt 0:07:42]} bxc5 {[%emt 0:01:09]} 10. Nf3 {[%emt 0:05:04]} Bb7 {[%emt 0:07:16]} 11. O-O {[%emt 0:09:07]} Nbd7 {[%emt 0:04:01]} 12. Rfd1 {[%emt 0:07:39]} Rc8 {[%emt 0:04:56]} 13. Bf5 {[%emt 0:11:25]} g6 {[%emt 0:11:19]} 14. Bh3 {[%emt 0:04:02]} d4 {[%emt 0:03:34]} 15. Be1 {[%emt 0:14:45]} dxc3 {[%emt 0:08:15]} 16. bxc3 {[%emt 0:00:20]} Ba5 {[%emt 0:00:58]} 17. Ne5 {[%emt 0:02:19]} Nxe5 {[%emt 0:01:04]} 18. Rxd8 {[%emt 0:00:23]} Rcxd8 {[%emt 0:00:07]} 19. Qb2 {[%emt 0:00:18]} Ba8 {[%emt 0:03:37]} 20. c4 {[%emt 0:00:34]} Nd3 {[%emt 0:00:18]} 21. Qxf6 {[%emt 0:01:44]} Bxe1 {[%emt 0:00:10]} 22. Rxe1 {[%emt 0:00:30]} Nxe1 {[%emt 0:00:30]} 23. Bg4 {[%emt 0:00:30]} Nd3 {[%emt 0:00:30]} 24. Bh3 {[%emt 0:23:34]} Ne1 {[%emt 0:00:31]} 25. Bg4 {[%emt 0:00:00]} Nxg2 {[%emt 0:02:59]} 26. e4 {[%emt 0:00:00]} Bxe4 {[%emt 0:01:28]} 27. f3 {[%emt 0:00:25]} Ne3 {[%emt 0:00:24]} 28. fxe4 {[%emt 0:00:57]} Nxg4 {[%emt 0:00:30]} 29. Qg5 {[%emt 0:00:14]} Rd4 {[%emt 0:04:14]} 30. Qxg4 {[%emt 0:00:48]} Re8 {[%emt 0:00:20]} 31. Qg5 {[%emt 0:00:30]} Rxc4 {[%emt 0:01:17]} 32. e5 {[%emt 0:00:20]} Re4 {[%emt 0:02:53]} 33. e6 {[%emt 0:00:14]} R8xe6 {[%emt 0:00:23]} 34. Qxc5 {[%emt 0:00:06]} a6 {[%emt 0:01:10]} 35. a3 {[%emt 0:00:07]} h5 {[%emt 0:00:19]} 36. h3 {[%emt 0:01:43]} R4e5 {[%emt 0:00:52]} 37. Qc8+ {[%emt 0:00:34]} Kg7 {[%emt 0:00:53]} 38. Qc3 {[%emt 0:00:18]} Kh7 {[%emt 0:00:19]} 39. Qc7 {[%emt 0:00:22]} Rg5+ {[%emt 0:00:28]} 40. Kf2 {[%emt 0:00:37]} Rf5+ {[%emt 0:00:08]} 41. Kg3 {[%emt 0:30:20]} Re3+ {[%emt 0:30:22]} 42. Kh4 {[%emt 0:00:09]} Rff3 {[%emt 0:02:02]} 43. a4 {[%emt 0:01:08]} Re4+ {[%emt 0:00:21]} 44. Kg5 {[%emt 0:00:06]} Rf5# {[%emt 0:00:04]} 0-1

[Event "Bayerischer Schachbund IM 2024"]
[Site "Rosenheim"]
[Date "2024.08.17"]
[Round "8.8"]
[White "Miller, Eduard"]
[Black "Platzgummer, Fabian"]
[Result "1/2-1/2"]
[Annotator "RC"]
[ECO "B13"]
[WhiteElo "2319"]
[BlackElo "2304"]
[PlyCount "40"]
[EventDate "2024.08.12"]
[EventType "tourn"]
[EventCountry "GER"]
[SourceTitle "playchess.com"]
[Source "ChessBase"]
[SourceQuality "1"]
[TimeControl "40/5400+30:1800+30"]

1. e4 {[%emt 0:00:04]} c6 {[%emt 0:00:15]} 2. d4 {[%emt 0:00:06]} d5 {[%emt 0:00:31]} 3. exd5 {[%emt 0:00:06]} cxd5 {[%emt 0:00:07]} 4. Bd3 {[%emt 0:00:04]} Nf6 {[%emt 0:00:22]} 5. c3 {[%emt 0:00:05]} Nc6 {[%emt 1:31:45]} 6. Bf4 {[%emt 0:00:17]} Bg4 {[%emt 0:00:00]} 7. Qb3 {[%emt 0:00:52]} Na5 {[%emt 0:00:00]} 8. Qa4+ {[%emt 0:00:16]} Bd7 {[%emt 0:00:00]} 9. Qc2 {[%emt 0:00:07]} Qb6 {[%emt 0:00:00]} 10. Nf3 {[%emt 0:07:24]} Bb5 {[%emt 0:00:00]} 11. Bxb5+ {[%emt 0:00:29]} Qxb5 {[%emt 0:00:00]} 12. Na3 {[%emt 0:00:05]} Qb6 {[%emt 0:00:00]} 13. O-O {[%emt 0:09:18]} e6 {[%emt 0:00:00]} 14. Qa4+ {[%emt 0:00:54]} Nd7 {[%emt 0:00:00]} 15. b4 {[%emt 0:13:57]} Nc6 {[%emt 0:00:00]} 16. Nb5 {[%emt 0:01:14]} Rc8 {[%emt 0:00:00]} 17. Rac1 {[%emt 0:00:23]} a6 {[%emt 0:00:00]} 18. Nd6+ {[%emt 0:00:29]} Bxd6 {[%emt 0:00:00]} 19. Bxd6 {[%emt 0:00:03]} Ncb8 {[%emt 0:00:00]} 20. Bg3 {[%emt 0:15:26]} O-O {[%emt 0:00:00]} 1/2-1/2